[Event "Live Chess"]
[Site "Chess.com"]
[Date "2023.05.20"]
[Round "-"]
[White "gmnorfolk"]
[Black "JohanKjeldahl"]
[Result "0-1"]
[WhiteElo "2114"]
[BlackElo "1780"]
[TimeControl "300"]
[EndTime "11:20:33 PDT"]
[Termination "JohanKjeldahl won by resignation"]

1. d4 {[%clk 0:04:58.1]} 1... Nf6 {[%clk 0:04:58.3]} 2. c4 {[%clk 0:04:57.2]}
2... e5 {[%clk 0:04:57.3]} 3. dxe5 {[%clk 0:04:55.9]} 3... Ng4 {[%clk
0:04:55.9]} 4. e4 {[%clk 0:04:54.9]} 4... Nxe5 {[%clk 0:04:52.7]} 5. f4 {[%clk
0:04:52.8]} 5... Ng6 {[%clk 0:04:47.3]} 6. Nf3 {[%clk 0:04:49.5]} 6... Bc5
{[%clk 0:04:44.2]} 7. Nc3 {[%clk 0:04:48.1]} 7... O-O {[%clk 0:04:42.1]} 8. Bd3
{[%clk 0:04:46.3]} 8... d6 {[%clk 0:04:39.5]} 9. Qc2 {[%clk 0:04:41.5]} 9... Nc6
{[%clk 0:04:35.1]} 10. a3 {[%clk 0:04:40.5]} 10... Bg4 {[%clk 0:04:31.9]} 11.
Ne2 {[%clk 0:04:09.8]} 11... Re8 {[%clk 0:04:22.4]} 12. Bd2 {[%clk 0:04:06.6]}
12... a5 {[%clk 0:04:15.5]} 13. O-O-O {[%clk 0:04:03.6]} 13... a4 {[%clk
0:03:52.5]} 14. h3 {[%clk 0:04:01]} 14... Bxf3 {[%clk 0:03:49.5]} 15. gxf3
{[%clk 0:04:00.9]} 15... Na5 {[%clk 0:03:43.1]} 16. Bc3 {[%clk 0:03:59]} 16...
Nb3+ {[%clk 0:03:40.7]} 17. Kb1 {[%clk 0:03:57.6]} 17... c6 {[%clk 0:03:33]} 18.
h4 {[%clk 0:03:51.8]} 18... Qb6 {[%clk 0:03:21.9]} 19. h5 {[%clk 0:03:46.9]}
19... Nf8 {[%clk 0:03:17.5]} 20. h6 {[%clk 0:03:45.8]} 20... g6 {[%clk
0:03:13.6]} 21. f5 {[%clk 0:03:41.7]} 21... Nd4 {[%clk 0:03:06.5]} 22. Nxd4
{[%clk 0:03:38.1]} 22... Bxd4 {[%clk 0:03:04.1]} 23. fxg6 {[%clk 0:03:36.8]}
23... fxg6 {[%clk 0:02:59.2]} 24. f4 {[%clk 0:03:33.1]} 24... Ne6 {[%clk
0:02:51.3]} 25. f5 {[%clk 0:03:30.8]} 25... Nf4 {[%clk 0:02:36.8]} 26. Rdf1
{[%clk 0:03:22.9]} 26... Be5 {[%clk 0:02:08.2]} 27. Bxe5 {[%clk 0:03:05.4]}
27... dxe5 {[%clk 0:02:06.3]} 28. c5 {[%clk 0:03:02.6]} 28... Qa5 {[%clk
0:02:01.2]} 29. Bc4+ {[%clk 0:02:58.6]} 29... Kh8 {[%clk 0:01:56]} 30. Rxf4
{[%clk 0:02:56.3]} 30... exf4 {[%clk 0:01:50.9]} 31. fxg6 {[%clk 0:02:51.5]}
31... hxg6 {[%clk 0:01:48.3]} 32. Bf7 {[%clk 0:02:45.7]} 32... Re5 {[%clk
0:01:42]} 33. Qg2 {[%clk 0:02:38.6]} 33... Qxc5 {[%clk 0:01:33.5]} 34. Qxg6
{[%clk 0:02:35.5]} 34... Rg5 {[%clk 0:01:23.2]} 35. Qf6+ {[%clk 0:02:28.1]}
35... Kh7 {[%clk 0:01:18.7]} 36. Be6 {[%clk 0:02:13.1]} 36... Rf8 {[%clk
0:01:15.1]} 37. Bf5+ {[%clk 0:02:01.9]} 37... Qxf5 {[%clk 0:01:12.8]} 38. Qxf5+
{[%clk 0:01:30.8]} 38... Rfxf5 {[%clk 0:01:10.5]} 39. exf5 {[%clk 0:01:29.5]}
39... Rxf5 {[%clk 0:01:09.5]} 40. Kc2 {[%clk 0:01:28.2]} 40... f3 {[%clk
0:01:08.3]} 41. Kd3 {[%clk 0:01:28.1]} 41... f2 {[%clk 0:01:07.3]} 42. Rf1
{[%clk 0:01:27.5]} 42... Kxh6 {[%clk 0:01:05.6]} 43. Ke2 {[%clk 0:01:27.1]}
43... Kg5 {[%clk 0:01:04.5]} 44. Rxf2 {[%clk 0:01:26.7]} 44... Rxf2+ {[%clk
0:01:01.4]} 45. Kxf2 {[%clk 0:01:26.6]} 45... Kf4 {[%clk 0:01:00.3]} 46. Ke2
{[%clk 0:01:24.1]} 46... Ke4 {[%clk 0:00:59.5]} 47. Kd2 {[%clk 0:01:23.7]} 47...
Kd4 {[%clk 0:00:58.7]} 48. Kc2 {[%clk 0:01:23.1]} 48... Kc4 {[%clk 0:00:57.9]}
49. Kc1 {[%clk 0:01:22.4]} 49... Kb3 {[%clk 0:00:56.4]} 50. Kb1 {[%clk
0:01:21.5]} 50... b5 {[%clk 0:00:55.3]} 51. Kc1 {[%clk 0:01:20.1]} 51... c5
{[%clk 0:00:54.5]} 52. Kb1 {[%clk 0:01:18.9]} 52... b4 {[%clk 0:00:53.5]} 53.
axb4 {[%clk 0:01:17.3]} 53... cxb4 {[%clk 0:00:52.3]} 54. Ka1 {[%clk 0:01:16.1]}
54... Kc2 {[%clk 0:00:49.9]} 55. Ka2 {[%clk 0:01:13.9]} 55... b3+ {[%clk
0:00:45.6]} 56. Ka1 {[%clk 0:01:12.5]} 56... a3 {[%clk 0:00:43]} 0-1

[Event "Live Chess"]
[Site "Chess.com"]
[Date "2023.05.20"]
[Round "-"]
[White "Bot_Boy"]
[Black "AdamOwls"]
[Result "0-1"]
[WhiteElo "332"]
[BlackElo "1944"]
[TimeControl "300"]
[EndTime "11:20:37 PDT"]
[Termination "AdamOwls won on time"]

1. e4 {[%clk 0:04:53]} 1... c5 {[%clk 0:04:59.2]} 2. Nf3 {[%clk 0:04:49.8]} 2...
e6 {[%clk 0:04:57.7]} 3. Nc3 {[%clk 0:04:41.9]} 3... Nc6 {[%clk 0:04:54.9]} 4.
Bc4 {[%clk 0:04:30.8]} 4... a6 {[%clk 0:04:52.3]} 5. d3 {[%clk 0:04:15]} 5... b5
{[%clk 0:04:48.3]} 6. Bb3 {[%clk 0:04:08.2]} 6... Qc7 {[%clk 0:04:46.7]} 7. Ne2
{[%clk 0:03:44]} 7... Nf6 {[%clk 0:04:43.7]} 8. c3 {[%clk 0:03:38.8]} 8... Bb7
{[%clk 0:04:42]} 9. h3 {[%clk 0:03:22.6]} 9... Be7 {[%clk 0:04:40.3]} 10. Bc2
{[%clk 0:03:13.4]} 10... O-O {[%clk 0:04:37.7]} 11. d4 {[%clk 0:03:07.1]} 11...
cxd4 {[%clk 0:04:32.9]} 12. Nfxd4 {[%clk 0:02:48.6]} 12... Rfd8 {[%clk
0:04:27.4]} 13. Nf3 {[%clk 0:02:36]} 13... d5 {[%clk 0:04:24.3]} 14. Bf4 {[%clk
0:02:28.8]} 14... Qb6 {[%clk 0:04:10.1]} 15. e5 {[%clk 0:02:11.5]} 15... Nd7
{[%clk 0:04:05.8]} 16. Bg5 {[%clk 0:01:34.1]} 16... Nf8 {[%clk 0:03:55.5]} 17.
Bxe7 {[%clk 0:01:20.7]} 17... Nxe7 {[%clk 0:03:55.4]} 18. Nfd4 {[%clk 0:01:16]}
18... Nfg6 {[%clk 0:03:39.9]} 19. Bxg6 {[%clk 0:00:58.4]} 19... Nxg6 {[%clk
0:03:37.2]} 20. Qd2 {[%clk 0:00:48.5]} 20... Nxe5 {[%clk 0:03:32.3]} 21. f4
{[%clk 0:00:35.1]} 21... Ng6 {[%clk 0:03:24.5]} 22. Rf1 {[%clk 0:00:27.8]} 22...
Re8 {[%clk 0:03:04.2]} 23. O-O-O {[%clk 0:00:15.5]} 23... Rac8 {[%clk
0:02:59.4]} 24. Kb1 {[%clk 0:00:13.6]} 24... a5 {[%clk 0:02:57]} 25. f5 {[%clk
0:00:10.8]} 25... exf5 {[%clk 0:02:55.1]} 26. Nxf5 {[%clk 0:00:09]} 26... b4
{[%clk 0:02:53.9]} 27. c4 {[%clk 0:00:02]} 27... dxc4 {[%clk 0:02:52.2]} 28. Rc1
{[%clk 0:00:00.8]} 28... c3 {[%clk 0:02:50.5]} 0-1

[Event "Live Chess"]
[Site "Chess.com"]
[Date "2023.05.20"]
[Round "-"]
[White "Albul"]
[Black "CheckThis4"]
[Result "0-1"]
[WhiteElo "2162"]
[BlackElo "2552"]
[TimeControl "300"]
[EndTime "11:20:46 PDT"]
[Termination "CheckThis4 won on time"]

1. e4 {[%clk 0:04:57.6]} 1... c5 {[%clk 0:04:57.4]} 2. Nc3 {[%clk 0:04:56.1]}
2... Nc6 {[%clk 0:04:56]} 3. d3 {[%clk 0:04:55.5]} 3... g6 {[%clk 0:04:53.8]} 4.
Be3 {[%clk 0:04:54.4]} 4... b6 {[%clk 0:04:43.5]} 5. g3 {[%clk 0:04:52.6]} 5...
Bg7 {[%clk 0:04:42.1]} 6. Qd2 {[%clk 0:04:50.8]} 6... h5 {[%clk 0:04:28.5]} 7.
Bg2 {[%clk 0:04:47.5]} 7... h4 {[%clk 0:04:26.9]} 8. h3 {[%clk 0:04:46.8]} 8...
hxg3 {[%clk 0:04:24.9]} 9. fxg3 {[%clk 0:04:45.7]} 9... Bb7 {[%clk 0:04:14.5]}
10. Nge2 {[%clk 0:04:40.5]} 10... Nf6 {[%clk 0:04:09.7]} 11. O-O-O {[%clk
0:04:36.7]} 11... d6 {[%clk 0:04:02.7]} 12. Rdf1 {[%clk 0:04:34.2]} 12... Qd7
{[%clk 0:03:59.9]} 13. g4 {[%clk 0:04:30]} 13... O-O-O {[%clk 0:03:55.7]} 14. g5
{[%clk 0:04:04.7]} 14... Nh5 {[%clk 0:03:53.8]} 15. Rxf7 {[%clk 0:04:02]} 15...
Ne5 {[%clk 0:03:47.9]} 16. Rf2 {[%clk 0:03:53.3]} 16... Kb8 {[%clk 0:03:46.1]}
17. Nd5 {[%clk 0:03:28.6]} 17... Bxd5 {[%clk 0:03:11.7]} 18. exd5 {[%clk
0:03:26.9]} 18... Rhf8 {[%clk 0:03:04.3]} 19. Rhf1 {[%clk 0:03:23.5]} 19... Qa4
{[%clk 0:02:55.2]} 20. Nc3 {[%clk 0:03:15]} 20... Qh4 {[%clk 0:02:49.2]} 21.
Rxf8 {[%clk 0:03:06.2]} 21... Bxf8 {[%clk 0:02:40.6]} 22. Qe1 {[%clk 0:02:33.4]}
22... Qb4 {[%clk 0:02:11.5]} 23. Be4 {[%clk 0:02:16.3]} 23... Bg7 {[%clk
0:02:08.4]} 24. Bf3 {[%clk 0:01:30.2]} 24... Nxf3 {[%clk 0:01:57.1]} 25. Rxf3
{[%clk 0:01:28.6]} 25... Be5 {[%clk 0:01:48.8]} 26. Bd2 {[%clk 0:01:09.4]} 26...
Qd4 {[%clk 0:01:42]} 27. Be3 {[%clk 0:00:54.1]} 27... Qb4 {[%clk 0:01:36.9]} 28.
a3 {[%clk 0:00:37.1]} 28... Qa5 {[%clk 0:01:22.7]} 29. Bd2 {[%clk 0:00:36.5]}
29... Qa6 {[%clk 0:01:17.1]} 30. Qe4 {[%clk 0:00:27.3]} 30... Rg8 {[%clk
0:01:12.5]} 31. Ne2 {[%clk 0:00:20.6]} 31... Qc8 {[%clk 0:01:10]} 32. Qg4 {[%clk
0:00:18.6]} 32... Ng7 {[%clk 0:01:03.1]} 33. Qxc8+ {[%clk 0:00:15.4]} 33... Kxc8
{[%clk 0:01:03]} 34. Bc3 {[%clk 0:00:12.4]} 34... Bxc3 {[%clk 0:01:00.8]} 35.
Nxc3 {[%clk 0:00:11.6]} 35... Nf5 {[%clk 0:00:59.9]} 36. Ne4 {[%clk 0:00:10.3]}
36... Rh8 {[%clk 0:00:58.7]} 37. Kd2 {[%clk 0:00:09.3]} 37... Kd7 {[%clk
0:00:57.4]} 38. Ke2 {[%clk 0:00:08.3]} 38... Nd4+ {[%clk 0:00:56]} 39. Ke3
{[%clk 0:00:06.9]} 39... Nxf3 {[%clk 0:00:55.1]} 40. Kxf3 {[%clk 0:00:06.6]}
40... Rxh3+ {[%clk 0:00:54]} 41. Ke2 {[%clk 0:00:05.3]} 41... Rh2+ {[%clk
0:00:53.1]} 42. Kd1 {[%clk 0:00:04.5]} 42... e6 {[%clk 0:00:51.1]} 43. Nf6+
{[%clk 0:00:02.2]} 43... Ke7 {[%clk 0:00:49.4]} 44. dxe6 {[%clk 0:00:01.5]}
44... Kxe6 {[%clk 0:00:48.5]} 45. Ne4 {[%clk 0:00:01.1]} 45... d5 {[%clk
0:00:46.2]} 0-1

[Event "Live Chess"]
[Site "Chess.com"]
[Date "2023.05.20"]
[Round "-"]
[White "Chesscoach_Golichenko"]
[Black "MaximKris"]
[Result "1-0"]
[WhiteElo "2654"]
[BlackElo "1869"]
[TimeControl "300"]
[EndTime "11:20:53 PDT"]
[Termination "Chesscoach_Golichenko won by checkmate"]

1. d4 {[%clk 0:04:57.1]} 1... d5 {[%clk 0:04:58]} 2. c4 {[%clk 0:04:50.2]} 2...
e6 {[%clk 0:04:56.9]} 3. Nc3 {[%clk 0:04:48.9]} 3... Nf6 {[%clk 0:04:55.5]} 4.
Nf3 {[%clk 0:04:48]} 4... c6 {[%clk 0:04:52.8]} 5. e3 {[%clk 0:04:45.6]} 5...
Bd6 {[%clk 0:04:49.3]} 6. Qc2 {[%clk 0:04:41.2]} 6... O-O {[%clk 0:04:43.8]} 7.
Rg1 {[%clk 0:04:38]} 7... dxc4 {[%clk 0:04:40.7]} 8. Bxc4 {[%clk 0:04:35.2]}
8... b5 {[%clk 0:04:38.9]} 9. Bd3 {[%clk 0:04:34]} 9... h6 {[%clk 0:04:32.1]}
10. g4 {[%clk 0:04:32.4]} 10... b4 {[%clk 0:04:30.9]} 11. Na4 {[%clk 0:04:26.1]}
11... Qa5 {[%clk 0:04:26.1]} 12. b3 {[%clk 0:04:22]} 12... Ba6 {[%clk
0:04:18.6]} 13. h4 {[%clk 0:04:17.7]} 13... Bxd3 {[%clk 0:04:15.5]} 14. Qxd3
{[%clk 0:04:16.5]} 14... c5 {[%clk 0:04:08.8]} 15. g5 {[%clk 0:04:10.6]} 15...
hxg5 {[%clk 0:04:04]} 16. hxg5 {[%clk 0:03:53.2]} 16... Nh7 {[%clk 0:03:56.5]}
17. Rh1 {[%clk 0:03:50.7]} 17... g6 {[%clk 0:03:55.6]} 18. Bb2 {[%clk
0:03:47.9]} 18... c4 {[%clk 0:03:47.9]} 19. Qxc4 {[%clk 0:03:41.7]} 19... Na6
{[%clk 0:03:47.5]} 20. d5 {[%clk 0:03:32.7]} 20... Qxd5 {[%clk 0:03:44.1]} 21.
Rxh7 {[%clk 0:03:22.6]} 21... f6 {[%clk 0:03:33.3]} 22. Qxd5 {[%clk 0:03:12.7]}
22... exd5 {[%clk 0:03:31.5]} 23. Rd7 {[%clk 0:03:12.2]} 23... Be5 {[%clk
0:03:23.6]} 24. Nxe5 {[%clk 0:03:10.2]} 24... fxe5 {[%clk 0:03:23.5]} 25. Bxe5
{[%clk 0:03:09]} 25... Rae8 {[%clk 0:03:22]} 26. Bd4 {[%clk 0:03:05]} 26... Rf7
{[%clk 0:03:18.3]} 27. Rxf7 {[%clk 0:03:02.2]} 27... Kxf7 {[%clk 0:03:18.2]} 28.
Rc1 {[%clk 0:03:01.1]} 28... Ke6 {[%clk 0:03:15.6]} 29. Rc6+ {[%clk 0:03:00]}
29... Kf5 {[%clk 0:03:15]} 30. Rxa6 {[%clk 0:02:59.9]} 30... Ke4 {[%clk
0:03:14.7]} 31. Ke2 {[%clk 0:02:57.1]} 31... Rc8 {[%clk 0:03:13.4]} 32. Nc5+
{[%clk 0:02:54.2]} 32... Rxc5 {[%clk 0:03:11.5]} 33. Bxc5 {[%clk 0:02:52.5]}
33... d4 {[%clk 0:03:11.4]} 34. Bxd4 {[%clk 0:02:48.3]} 34... Kf5 {[%clk
0:03:11.3]} 35. f4 {[%clk 0:02:46.3]} 35... Kg4 {[%clk 0:03:11.2]} 36. Rxg6
{[%clk 0:02:44.3]} 36... Kh5 {[%clk 0:03:11.1]} 37. Rf6 {[%clk 0:02:44.2]} 37...
Kh4 {[%clk 0:03:10.2]} 38. g6 {[%clk 0:02:43.8]} 38... Kg4 {[%clk 0:03:10.1]}
39. g7 {[%clk 0:02:43.6]} 39... Kg3 {[%clk 0:03:10]} 40. g8=Q+ {[%clk
0:02:42.8]} 40... Kh2 {[%clk 0:03:09.4]} 41. Rh6# {[%clk 0:02:42.2]} 1-0

[Event "Live Chess"]
[Site "Chess.com"]
[Date "2023.05.20"]
[Round "-"]
[White "Andysav3"]
[Black "Tema1107"]
[Result "0-1"]
[WhiteElo "1690"]
[BlackElo "1968"]
[TimeControl "300"]
[EndTime "11:20:57 PDT"]
[Termination "Tema1107 won by resignation"]

1. e4 {[%clk 0:04:57.9]} 1... c5 {[%clk 0:04:54.2]} 2. c3 {[%clk 0:04:56.1]}
2... Nf6 {[%clk 0:04:52.8]} 3. e5 {[%clk 0:04:54.5]} 3... Nd5 {[%clk 0:04:52]}
4. d4 {[%clk 0:04:52.7]} 4... cxd4 {[%clk 0:04:51.9]} 5. Bc4 {[%clk 0:04:45.1]}
5... Nb6 {[%clk 0:04:49.2]} 6. Bb3 {[%clk 0:04:42.1]} 6... Nc6 {[%clk
0:04:45.3]} 7. cxd4 {[%clk 0:04:26.2]} 7... g6 {[%clk 0:04:37.3]} 8. Nf3 {[%clk
0:04:05]} 8... Bg7 {[%clk 0:04:13.4]} 9. Nc3 {[%clk 0:03:58.5]} 9... O-O {[%clk
0:04:11.5]} 10. O-O {[%clk 0:03:56.3]} 10... d6 {[%clk 0:04:03]} 11. exd6 {[%clk
0:03:38.9]} 11... Qxd6 {[%clk 0:04:02.9]} 12. Be3 {[%clk 0:03:35.9]} 12... Bg4
{[%clk 0:04:01]} 13. d5 {[%clk 0:03:28.2]} 13... Ne5 {[%clk 0:03:57.3]} 14. Ne4
{[%clk 0:03:05]} 14... Qd8 {[%clk 0:03:37.7]} 15. Neg5 {[%clk 0:02:35.5]} 15...
h6 {[%clk 0:03:21]} 16. h3 {[%clk 0:02:33.4]} 16... Bf5 {[%clk 0:02:19.7]} 17.
Nxe5 {[%clk 0:02:28]} 17... Bxe5 {[%clk 0:02:19.6]} 18. g4 {[%clk 0:02:09.3]}
18... Bd7 {[%clk 0:01:43.8]} 19. Ne4 {[%clk 0:02:00.8]} 19... Bb5 {[%clk
0:01:37.7]} 20. Re1 {[%clk 0:01:57.2]} 20... a5 {[%clk 0:01:20.5]} 21. Bxh6
{[%clk 0:01:51.3]} 21... Re8 {[%clk 0:01:13.8]} 22. Ng5 {[%clk 0:01:39.5]} 22...
a4 {[%clk 0:01:06.7]} 23. Nxf7 {[%clk 0:01:31.6]} 23... Kxf7 {[%clk 0:00:56.2]}
24. Rxe5 {[%clk 0:01:22.1]} 24... axb3 {[%clk 0:00:42.8]} 25. Qxb3 {[%clk
0:01:17.9]} 25... Bc4 {[%clk 0:00:39.2]} 26. Qf3+ {[%clk 0:01:06.5]} 26... Kg8
{[%clk 0:00:32.9]} 27. Rae1 {[%clk 0:00:38.9]} 27... Bxd5 {[%clk 0:00:20.6]} 28.
Qd3 {[%clk 0:00:37.1]} 28... Bf7 {[%clk 0:00:17.9]} 29. g5 {[%clk 0:00:32.9]}
29... Qxd3 {[%clk 0:00:16.6]} 0-1

[Event "Live Chess"]
[Site "Chess.com"]
[Date "2023.05.20"]
[Round "-"]
[White "Davidagye"]
[Black "ossie57"]
[Result "0-1"]
[WhiteElo "1678"]
[BlackElo "1878"]
[TimeControl "300"]
[EndTime "11:20:59 PDT"]
[Termination "ossie57 won by resignation"]

1. b4 {[%clk 0:04:57.3]} 1... Nf6 {[%clk 0:04:57.6]} 2. Bb2 {[%clk 0:04:55.6]}
2... e6 {[%clk 0:04:56.9]} 3. a3 {[%clk 0:04:54]} 3... g6 {[%clk 0:04:54.4]} 4.
c4 {[%clk 0:04:51.5]} 4... Bg7 {[%clk 0:04:53.8]} 5. d4 {[%clk 0:04:51.1]} 5...
O-O {[%clk 0:04:52.1]} 6. e3 {[%clk 0:04:49.7]} 6... d5 {[%clk 0:04:51.4]} 7.
Nf3 {[%clk 0:04:48.6]} 7... c6 {[%clk 0:04:43.7]} 8. Nbd2 {[%clk 0:04:40.4]}
8... a5 {[%clk 0:04:39.4]} 9. b5 {[%clk 0:04:33.3]} 9... cxb5 {[%clk 0:04:34.2]}
10. cxb5 {[%clk 0:04:20.6]} 10... b6 {[%clk 0:04:32.4]} 11. Bd3 {[%clk
0:04:17.5]} 11... Nbd7 {[%clk 0:04:30.2]} 12. O-O {[%clk 0:04:15.8]} 12... Re8
{[%clk 0:04:29.1]} 13. Rc1 {[%clk 0:04:14.3]} 13... Bb7 {[%clk 0:04:26.2]} 14.
Qe2 {[%clk 0:04:11]} 14... h6 {[%clk 0:04:20.9]} 15. Rc2 {[%clk 0:04:09.7]}
15... Rc8 {[%clk 0:04:19.3]} 16. Rfc1 {[%clk 0:04:06.8]} 16... Rxc2 {[%clk
0:04:18.4]} 17. Rxc2 {[%clk 0:04:05.6]} 17... Nh7 {[%clk 0:04:15.5]} 18. e4
{[%clk 0:04:02.9]} 18... e5 {[%clk 0:04:11.8]} 19. dxe5 {[%clk 0:03:57.7]} 19...
Nxe5 {[%clk 0:04:05.9]} 20. Nxe5 {[%clk 0:03:56.2]} 20... Bxe5 {[%clk
0:04:04.9]} 21. Bxe5 {[%clk 0:03:55.8]} 21... Rxe5 {[%clk 0:04:04.2]} 22. f4
{[%clk 0:03:55.4]} 22... dxe4 {[%clk 0:03:48.7]} 23. Nxe4 {[%clk 0:03:46.4]}
23... Qd4+ {[%clk 0:03:36.3]} 24. Kf1 {[%clk 0:03:34.9]} 0-1

[Event "Live Chess"]
[Site "Chess.com"]
[Date "2023.05.20"]
[Round "-"]
[White "Vladyslav2008"]
[Black "garyjc"]
[Result "1-0"]
[WhiteElo "2174"]
[BlackElo "1036"]
[TimeControl "300"]
[EndTime "11:21:02 PDT"]
[Termination "Vladyslav2008 won by resignation"]

1. e4 {[%clk 0:04:58.5]} 1... c5 {[%clk 0:04:57.1]} 2. Nf3 {[%clk 0:04:55.9]}
2... d6 {[%clk 0:04:55.9]} 3. d4 {[%clk 0:04:54.3]} 3... Qa5+ {[%clk 0:04:50.2]}
4. Nc3 {[%clk 0:04:51.6]} 4... cxd4 {[%clk 0:04:47.9]} 5. Nxd4 {[%clk
0:04:50.3]} 5... Nf6 {[%clk 0:04:30.3]} 6. Bd3 {[%clk 0:04:48.3]} 6... e6 {[%clk
0:04:21.4]} 7. O-O {[%clk 0:04:46]} 7... Be7 {[%clk 0:04:14.2]} 8. f4 {[%clk
0:04:41.1]} 8... O-O {[%clk 0:04:11.6]} 9. Kh1 {[%clk 0:04:38.2]} 9... Nc6
{[%clk 0:04:03.3]} 10. Nb3 {[%clk 0:04:32.5]} 10... Qc7 {[%clk 0:03:47.8]} 11.
g4 {[%clk 0:04:25]} 11... e5 {[%clk 0:03:37.9]} 12. f5 {[%clk 0:04:22.4]} 12...
Nd4 {[%clk 0:03:22.7]} 13. g5 {[%clk 0:04:18.8]} 13... Nd7 {[%clk 0:03:03.9]}
14. Nxd4 {[%clk 0:04:13.7]} 14... exd4 {[%clk 0:03:02.5]} 15. Nd5 {[%clk
0:04:12.7]} 15... Qd8 {[%clk 0:02:50.2]} 16. f6 {[%clk 0:03:54.8]} 16... Bxf6
{[%clk 0:02:38.1]} 17. gxf6 {[%clk 0:03:53.2]} 17... Nxf6 {[%clk 0:02:36.2]} 18.
Nxf6+ {[%clk 0:03:51.6]} 18... gxf6 {[%clk 0:02:30.1]} 19. Bh6 {[%clk
0:03:49.5]} 19... Re8 {[%clk 0:02:23.5]} 20. Rg1+ {[%clk 0:03:48.3]} 20... Kh8
{[%clk 0:02:21.4]} 21. Bg7+ {[%clk 0:03:47.3]} 21... Kg8 {[%clk 0:02:19.7]} 22.
Bxf6+ {[%clk 0:03:46.4]} 1-0

[Event "Live Chess"]
[Site "Chess.com"]
[Date "2023.05.20"]
[Round "-"]
[White "1600x"]
[Black "wadsy27"]
[Result "0-1"]
[WhiteElo "1557"]
[BlackElo "2588"]
[TimeControl "300"]
[EndTime "11:21:06 PDT"]
[Termination "wadsy27 won - game abandoned"]

1. d4 {[%clk 0:04:52.2]} 1... Nf6 {[%clk 0:04:57]} 2. Nc3 {[%clk 0:04:38.7]}
2... d5 {[%clk 0:04:55]} 3. Nf3 {[%clk 0:04:27.8]} 3... c6 {[%clk 0:04:52.9]} 4.
Bf4 {[%clk 0:03:59.9]} 4... Bf5 {[%clk 0:04:49.1]} 5. e3 {[%clk 0:03:57.4]} 5...
e6 {[%clk 0:04:47.2]} 6. Bd3 {[%clk 0:03:55.1]} 6... Bxd3 {[%clk 0:04:35.3]} 7.
cxd3 {[%clk 0:03:53.3]} 7... Bd6 {[%clk 0:04:32]} 8. Bxd6 {[%clk 0:03:49.7]}
8... Qxd6 {[%clk 0:04:31]} 9. O-O {[%clk 0:03:45.4]} 9... O-O {[%clk 0:04:29.5]}
10. e4 {[%clk 0:03:43.5]} 10... Nfd7 {[%clk 0:04:24.8]} 11. Rc1 {[%clk
0:03:41.1]} 11... a5 {[%clk 0:04:22.5]} 12. Re1 {[%clk 0:03:39]} 12... Na6
{[%clk 0:04:14.4]} 13. a3 {[%clk 0:03:36.6]} 13... b5 {[%clk 0:04:06.4]} 14. h3
{[%clk 0:03:32]} 14... Rfb8 {[%clk 0:03:53.3]} 15. Ne2 {[%clk 0:03:28.5]} 15...
b4 {[%clk 0:03:48.5]} 16. a4 {[%clk 0:03:20.3]} 16... c5 {[%clk 0:03:21]} 0-1